bitfinex-derivatives/quotes_BNBF0:USTF0_20250907
["timestamp","ask_amount","ask_price","bid_price","bid_amount"]
[1757269771725,1.74174937,877.8,876.63,1.79495231]
[1757269771922,1.5431096,877.79,876.63,1.79495231]
[1757269772327,1.74174937,877.8,876.63,1.79495231]
[1757269772621,0.19863977,877.8,876.58,0.76927991]
[1757269774528,0.19863977,877.8,876.55,0.76927991]
[1757269775030,0.19863977,877.8,876.53,0.76927991]
[1757269784838,1.5431096,877.79,876.53,1.79495231]
[1757269786139,1.74174937,877.8,876.53,1.79495231]
[1757269789041,0.19863977,877.8,876.53,0.7711998]
[1757269802160,1.5431096,877.68,876.53,1.7968722]
[1757269803058,1.5431096,877.69,876.53,1.7968722]
[1757269803655,1.5431096,877.68,876.53,1.7968722]
[1757269804654,1.5431096,877.76,876.53,1.7968722]
[1757269806658,1.5431096,877.75,876.53,1.7968722]
[1757269807761,0.19863977,877.8,876.53,0.7711998]
[1757269809057,0.19863977,877.8,876.47,1.0256724]
[1757269809261,0.19863977,877.8,876.53,0.77107705]
[1757269809461,0.19863977,877.8,876.53,0.77108029]
[1757269817662,0.19863977,877.8,876.53,1.79675269]
[1757269820970,0.19863977,877.8,876.43,0.77108029]
[1757269822372,1.5431096,877.6,876.43,1.79675269]
[1757269822768,1.5431096,877.53,876.43,1.79675269]
[1757269823467,1.5431096,877.55,876.43,1.79675269]
[1757269823971,1.5431096,877.52,876.43,1.79675269]
[1757269824171,1.5431096,877.53,876.43,1.79675269]
[1757269824371,1.5431096,877.6,876.44,2.52629381]
[1757269824567,1.5431096,877.58,876.44,1.79675269]
[1757269825171,1.5431096,877.52,876.44,1.79675269]
[1757269825369,1.5431096,877.55,876.44,1.79675269]
[1757269825974,1.5431096,877.58,876.44,1.79675269]
[1757269826468,1.5431096,877.6,876.44,1.79675269]
[1757269826772,1.5431096,877.59,876.44,1.79675269]
[1757269827472,1.5431096,877.6,876.44,1.79675269]
[1757269829771,1.5431096,877.57,876.44,1.79675269]
[1757269830174,1.5431096,877.56,876.44,1.79675269]
[1757269830374,1.5431096,877.57,876.44,1.79675269]
[1757269831071,1.5431096,877.59,876.44,1.79675269]
[1757269832172,1.5431096,877.58,876.44,1.79675269]
[1757269832476,1.5431096,877.59,876.44,1.79675269]
[1757269834574,1.5431096,877.58,876.43,1.79675269]
[1757269834776,1.5431096,877.59,876.44,2.5264221]
[1757269834978,1.5431096,877.59,876.44,1.79675269]
[1757269836274,1.5431096,877.58,876.44,1.79675269]
[1757269836573,1.5431096,877.55,876.44,1.79675269]
[1757269836777,0.19863977,877.8,876.44,1.79675269]
[1757269836778,1.5431096,877.63,876.44,1.79675269]
[1757269837471,1.5431096,877.62,876.44,1.79675269]
[1757269837873,1.5431096,877.68,876.44,1.79675269]
[1757269839882,1.5431096,877.67,876.43,1.79675269]
[1757269840883,1.5431096,877.66,876.43,1.79675269]
[1757269841382,1.5431096,877.67,876.43,1.79675269]
[1757269844684,1.5431096,877.68,876.43,1.79675269]
[1757269846786,1.5431096,877.65,876.43,1.79675269]
[1757269847787,1.5431096,877.6,876.43,1.79675269]
[1757269849790,1.5431096,877.61,876.43,1.79675269]
[1757269850190,1.5431096,877.6,876.43,1.79675269]
[1757269851296,0.19863977,877.8,876.43,1.79675269]
[1757269851297,1.5431096,877.58,876.43,1.79675269]
[1757269851996,1.5431096,877.57,876.43,1.79675269]
[1757269852597,1.5431096,877.59,876.44,2.52527384]
[1757269852799,1.5431096,877.58,876.44,1.79675269]
[1757269853194,1.5431096,877.63,876.44,1.79675269]
[1757269854397,1.5431096,877.62,876.44,1.79675269]
[1757269856698,1.5431096,877.61,876.44,1.79675269]
[1757269857195,1.5431096,877.71,876.44,1.79675269]
[1757269857896,1.5431096,877.72,876.45,2.52530931]
[1757269858101,1.5431096,877.73,876.45,1.79675269]
[1757269858298,1.5431096,877.72,876.45,1.79675269]
[1757269859301,1.5431096,877.72,876.44,1.79675269]
[1757269859696,1.5431096,877.71,876.44,1.79675269]
[1757269861298,1.5431096,877.71,876.45,2.52535078]
[1757269861499,1.5431096,877.71,876.45,1.79675269]
[1757269863105,1.5431096,877.69,876.45,1.79675269]
[1757269864307,1.5431096,877.69,876.44,1.79675269]
[1757269865799,1.5431096,877.7,876.44,1.79675269]
[1757269867105,1.5431096,877.6,876.44,1.79675269]
[1757269867306,1.5431096,877.62,876.44,1.79675269]
[1757269868005,1.5431096,877.62,876.45,0.72874297]
[1757269868204,1.5431096,877.62,876.45,1.79675269]
[1757269869508,1.5431096,877.61,876.44,1.79675269]
[1757269871009,1.5431096,877.63,876.44,1.79675269]
[1757269871309,1.5431096,877.62,876.44,1.79675269]
[1757269873110,0.19863977,877.8,876.44,0.77108029]
[1757269873409,0.19863977,877.8,876.53,0.77108029]
[1757269873714,0.19863977,877.8,876.64,0.77108029]
[1757269875821,0.19863977,877.8,876.65,1.49955229]
[1757269876021,0.19863977,877.8,876.65,0.77108029]
[1757269879423,0.19863977,877.8,876.65,1.79675269]
[1757269882125,0.19863977,877.8,876.65,0.77108029]
[1757269886832,0.19863977,877.8,876.64,0.77108029]
[1757269892739,0.19863977,877.8,876.65,1.50230114]
[1757269892935,0.19863977,877.8,876.65,0.77108029]
[1757269894536,0.19863977,877.8,876.64,0.77108029]
[1757269895239,0.19863977,877.8,876.65,1.50223364]
[1757269895441,0.19863977,877.8,876.65,0.77108029]
[1757269900646,0.19863977,877.8,876.49,0.77108029]
[1757269902746,0.19863977,877.8,876.48,0.77108029]
[1757269905143,0.19863977,877.8,876.49,1.50233799]
[1757269905444,0.19863977,877.8,876.49,0.77108029]
[1757269909954,0.19863977,877.8,876.48,0.77108029]
[1757269912553,0.19863977,877.8,876.4,1.0256724]
[1757269912750,0.19863977,877.8,876.48,0.76994394]
[1757269913657,0.19863977,877.8,876.49,1.49921123]
[1757269913854,0.19863977,877.8,876.49,0.76994394]
[1757269915060,1.5431096,877.77,876.49,0.76994394]
[1757269915357,1.5431096,877.76,876.49,0.76994394]
[1757269916261,1.5431096,877.75,876.49,0.76994394]
[1757269917761,1.5431096,877.73,876.49,1.79561634]
[1757269918659,1.5431096,877.72,876.49,1.79561634]
[1757269918863,1.5431096,877.71,876.49,1.79561634]
[1757269919364,1.5431096,877.71,876.48,1.79561634]
[1757269919660,1.5431096,877.68,876.48,1.79561634]
[1757269920160,1.5431096,877.67,876.48,1.79561634]
[1757269920359,1.5431096,877.69,876.48,1.79561634]
[1757269920560,1.5431096,877.69,876.49,2.5249955]
[1757269920764,1.5431096,877.69,876.49,1.79561634]
[1757269921763,1.5431096,877.71,876.49,1.79561634]
[1757269921966,1.5431096,877.7,876.49,1.79561634]
[1757269922967,1.5431096,877.68,876.49,1.79561634]
[1757269925266,0.19869365,877.39,876.49,1.79561634]
[1757269936176,0.19869365,877.39,876.49,0.76994394]
[1757269948090,0.19869365,877.39,876.49,1.79561634]
[1757269949593,0.19869365,877.39,876.45,0.76994394]
[1757269949793,0.19869365,877.39,876.44,0.76994394]
[1757269950694,0.19869365,877.39,876.44,1.79561634]
[1757269952291,0.19869365,877.39,876.44,0.76994394]
[1757269952696,0.19869365,877.39,876.43,1.79561634]
[1757269953292,0.19869365,877.39,876.42,1.79561634]
[1757269954698,0.19869365,877.39,876.28,1.5436637]
[1757269954699,0.19869365,877.39,876.43,2.52699949]
[1757269954896,0.19869365,877.39,876.43,1.79561634]
[1757269957600,0.19869365,877.39,876.42,1.79561634]
[1757269962302,0.19869365,877.39,876.38,1.79561634]
[1757269964202,0.19869365,877.39,876.37,0.76994394]
[1757269964408,0.19869365,877.39,876.25,1.79561634]
[1757269964607,0.19869365,877.39,876.1,1.5436637]
[1757269964608,1.5431096,877.36,876.2,1.79561634]
[1757269965106,1.5431096,877.38,876.2,1.79561634]
[1757269966106,0.19869365,877.39,876.2,1.79561634]
[1757269970009,0.19869365,877.39,876.2,0.76994394]
[1757269970210,0.19869365,877.39,876.14,0.76994394]
[1757269970610,0.19869365,877.39,876.08,1.0256724]
[1757269970611,0.19869365,877.39,876.13,0.76994394]
[1757269971312,0.19869365,877.39,876.1,0.76994394]
[1757269977406,0.19869365,877.39,876.0,1.0256724]
[1757269977407,0.19869365,877.39,876.03,0.76994394]
[1757269994427,0.19869365,877.39,876.02,0.76994394]
[1757269995626,0.19869365,877.39,875.97,0.76994394]
[1757269995829,0.19869365,877.39,875.9,0.76994394]
[1757269996029,0.19869365,877.39,875.91,0.72758979]
[1757269996326,0.19869365,877.39,875.89,0.76994394]
[1757269996528,0.19869365,877.39,875.9,0.72752043]
[1757269996826,0.19869365,877.39,875.91,0.72752043]
[1757269997024,0.19869365,877.39,875.92,0.72752043]
[1757269997225,0.19869365,877.39,875.89,0.76994394]
[1757269997428,0.19869365,877.39,875.9,0.72746153]
[1757269997629,0.19869365,877.39,875.91,0.72746153]
[1757269997925,0.19869365,877.39,875.92,0.72746153]
[1757269998131,0.19869365,877.39,875.63,1.0256724]
[1757269998330,0.19869365,877.39,875.89,0.76761816]
[1757269998530,0.19869365,877.39,875.9,0.72727449]
[1757269998729,0.19869365,877.39,875.91,0.72727449]
[1757269999028,0.19869365,877.39,875.92,0.72727449]
[1757269999330,0.19869365,877.39,875.89,0.76761816]
[1757269999529,0.19869365,877.39,875.9,0.72717699]
[1757269999730,0.19869365,877.39,875.91,0.72717699]
[1757270000030,0.19869365,877.39,875.92,0.72717699]
[1757270000228,0.19869365,877.39,875.93,0.72717699]
[1757270000432,0.19869365,877.39,875.9,0.76761816]
[1757270000632,0.19869365,877.39,875.91,0.72715606]
[1757270000828,0.19869365,877.39,875.92,0.72715606]
[1757270001032,0.19869365,877.39,875.93,0.72715606]
[1757270001333,0.19869365,877.39,875.9,0.76761816]
[1757270001533,0.19869365,877.39,875.91,0.72715255]
[1757270001832,0.19869365,877.39,875.92,0.72715255]
[1757270002033,0.19869365,877.39,875.93,0.72715255]
[1757270002227,0.19869365,877.39,875.9,0.76761816]
[1757270002429,0.19869365,877.39,875.91,0.72715993]
[1757270002628,0.19869365,877.39,875.92,0.72715993]
[1757270002829,0.19869365,877.39,875.93,0.72715993]
[1757270003032,0.19869365,877.39,875.94,0.72715993]
[1757270003329,0.19869365,877.39,875.9,0.76761816]
[1757270003528,0.19869365,877.39,875.91,0.72717709]
[1757270003732,0.19869365,877.39,875.92,0.72717709]
[1757270003947,0.19869365,877.39,875.93,0.72717709]
[1757270004130,0.19869365,877.39,875.94,0.72717709]
[1757270004333,0.19869365,877.39,875.91,0.76761816]
[1757270004533,0.19869365,877.39,875.92,0.72721169]
[1757270004733,0.19869365,877.39,875.93,0.72721169]
[1757270004933,0.19869365,877.39,875.94,0.72721169]
[1757270005234,0.19869365,877.39,875.91,0.76761816]
[1757270005432,0.19869365,877.39,875.92,0.72725611]
[1757270005634,0.19869365,877.39,875.94,0.76759517]
[1757270008437,1.74180325,877.39,875.94,0.76759517]
[1757270009233,1.5431096,877.38,875.94,0.76759517]
[1757270011132,1.5431096,877.37,875.94,0.76759517]
[1757270011537,0.19869365,877.39,875.94,0.76759517]
[1757270018842,0.19869365,877.39,875.93,0.76759517]
[1757270019039,0.19869365,877.39,875.94,1.49622135]
[1757270019242,0.19869365,877.39,875.94,0.76759517]
[1757270021443,1.5431096,877.36,875.94,0.76759517]
[1757270022148,1.5431096,877.35,875.94,0.76759517]
[1757270022742,1.5431096,877.34,875.94,0.76759517]
[1757270023148,1.5431096,877.33,875.94,0.76759517]
[1757270024148,1.5431096,877.32,875.94,0.76759517]
[1757270024748,1.5431096,877.33,875.94,0.76759517]
[1757270026149,1.5431096,877.32,875.94,0.76759517]
[1757270026449,1.5431096,877.33,875.94,0.76759517]
[1757270027244,1.5431096,877.27,875.94,0.76759517]
[1757270027446,1.5431096,877.29,875.94,0.76759517]
[1757270028047,1.5431096,877.28,875.94,0.76759517]
[1757270029051,1.5431096,877.27,875.94,0.76759517]
[1757270030148,1.5431096,877.24,875.94,0.76759517]
[1757270030553,1.5431096,877.24,875.94,1.79326757]
[1757270030752,1.5431096,877.25,875.94,0.76759517]
[1757270030951,1.5431096,877.24,875.94,1.79326757]
[1757270031154,1.5431096,877.28,875.94,0.76759517]
[1757270032154,1.5431096,877.27,875.94,0.76759517]
[1757270033958,1.5431096,877.26,875.94,0.76759517]
[1757270034560,1.5431096,877.23,875.94,1.79326757]
[1757270034954,1.5431096,877.24,875.94,1.79326757]
[1757270035455,1.5431096,877.14,875.94,1.79326757]
[1757270035759,1.5431096,877.15,875.94,1.79326757]
[1757270036159,1.5431096,877.17,875.94,1.79326757]
[1757270037158,1.5431096,877.16,875.94,1.79326757]
[1757270037560,1.5431096,877.15,875.94,1.79326757]
[1757270038360,1.5431096,877.17,875.94,1.79326757]
[1757270039161,1.5431096,877.27,875.94,0.76759517]
[1757270040460,1.5431096,877.28,875.94,0.76759517]
[1757270040858,1.5431096,877.27,875.94,0.76759517]
[1757270041061,1.5431096,877.27,875.94,1.79326757]
[1757270041262,0.19869365,877.39,875.94,0.76759517]
[1757270046662,0.19869365,877.39,875.93,0.76759517]
[1757270051166,1.5431096,877.29,875.93,1.79326757]
[1757270051467,1.5431096,877.33,875.93,0.76759517]
[1757270051662,1.5431096,877.31,875.93,0.76759517]
[1757270052764,1.5431096,877.3,875.93,0.76759517]
[1757270052965,1.5431096,877.31,875.93,0.76759517]
[1757270053168,1.5431096,877.31,875.93,1.79326757]
[1757270053468,1.5431096,877.3,875.93,1.79326757]
[1757270054068,1.5431096,877.31,875.93,1.79326757]
[1757270054266,1.5431096,877.28,875.93,1.79326757]
[1757270054469,1.5431096,877.27,875.93,1.79326757]
[1757270054864,1.5431096,877.26,875.93,1.79326757]
[1757270055070,1.5431096,877.25,875.93,1.79326757]
[1757270056465,1.5431096,877.24,875.93,1.79326757]
[1757270056669,1.5431096,877.23,875.93,1.79326757]
[1757270060666,1.5431096,877.19,875.93,1.79326757]
[1757270061371,1.5431096,877.14,875.93,1.79326757]
[1757270063066,1.5431096,877.15,875.93,1.79326757]
[1757270063269,1.5431096,877.34,875.93,0.76759517]
[1757270064470,1.5431096,877.34,875.93,1.79326757]
[1757270064969,1.5431096,877.33,875.93,1.79326757]
[1757270065470,1.5431096,877.34,875.93,1.79326757]
[1757270070472,1.5431096,877.32,875.93,1.79326757]
[1757270070875,1.5431096,877.33,875.93,1.79326757]
[1757270071479,1.5431096,877.32,875.93,1.79326757]
[1757270072876,1.5431096,877.31,875.93,1.79326757]
[1757270073081,1.5431096,877.3,875.93,1.79326757]
[1757270073381,1.5431096,877.13,875.93,1.79326757]
[1757270073881,1.5431096,877.14,875.93,1.79326757]
[1757270074581,0.19869365,877.39,875.93,0.76759517]
[1757270077181,1.5431096,877.38,875.93,0.76759517]
[1757270080281,1.74180325,877.39,875.93,0.76759517]
[1757270080688,1.5431096,877.38,875.93,0.76759517]
[1757270083588,1.5431096,877.36,875.91,0.76759517]
[1757270084283,1.5431096,877.17,875.91,1.79326757]
[1757270084687,1.5431096,877.18,875.91,1.79326757]
[1757270085385,1.5431096,877.17,875.91,1.79326757]
[1757270086388,1.5431096,877.15,875.91,1.79326757]
[1757270086586,1.5431096,877.2,875.91,1.79326757]
[1757270087083,1.5431096,877.19,875.91,1.79326757]
[1757270088191,1.5431096,877.2,875.91,1.79326757]
[1757270088392,1.5431096,877.25,875.87,1.79326757]
[1757270089089,1.5431096,877.32,875.91,1.79326757]
[1757270089292,1.5431096,877.32,875.91,0.76759517]
[1757270089987,1.5431096,877.32,875.91,1.79326757]
[1757270090192,1.5431096,877.31,875.91,1.79326757]
[1757270090695,0.19869365,877.39,875.92,1.49909401]
[1757270090893,0.19869365,877.39,875.94,0.76759517]
[1757270098898,1.74180325,877.39,875.94,0.76759517]
[1757270100498,1.5431096,877.38,875.94,0.76759517]
[1757270100698,1.5431096,877.15,875.94,1.79326757]
[1757270101297,1.5431096,877.16,875.94,1.79326757]
[1757270101798,1.5431096,877.15,875.94,1.79326757]
[1757270105200,1.5431096,877.14,875.94,1.79326757]
[1757270105900,1.5431096,877.13,875.94,1.79326757]
[1757270106098,1.5431096,877.11,875.94,1.79326757]
[1757270106301,1.5431096,877.12,875.94,1.79326757]
[1757270106602,1.5431096,877.11,875.94,1.79326757]
[1757270106798,1.5431096,877.16,875.94,1.79326757]
[1757270107704,1.5431096,877.17,875.94,1.79326757]
[1757270108904,1.5431096,877.16,875.94,1.79326757]
[1757270109104,1.5431096,877.17,875.94,1.79326757]
[1757270109599,1.5431096,877.14,875.94,1.79326757]
[1757270110604,1.5431096,877.13,875.94,1.79326757]
[1757270110802,1.5431096,877.12,875.94,1.79326757]
[1757270111103,1.5431096,877.13,875.94,1.79326757]
[1757270111301,1.5431096,877.15,875.94,1.79326757]
[1757270111800,1.5431096,877.16,875.94,1.79326757]
[1757270114202,1.5431096,877.15,875.93,1.79326757]
[1757270114707,1.5431096,877.15,875.92,1.79326757]
[1757270115904,1.5431096,877.13,875.84,1.79326757]
[1757270116205,1.5431096,877.13,875.83,1.79326757]
[1757270119007,1.5431096,877.12,875.83,1.79326757]
[1757270119207,1.5431096,877.13,875.83,1.79326757]
[1757270119708,1.5431096,877.12,875.83,1.79326757]
[1757270120508,1.5431096,877.13,875.83,1.79326757]
[1757270121108,1.5431096,877.12,875.83,1.79326757]
[1757270121408,1.5431096,877.13,875.83,1.79326757]
[1757270123409,0.19869365,877.39,875.83,1.79326757]
[1757270123410,1.5431096,877.07,875.83,1.79326757]
[1757270123907,1.5431096,877.0,875.83,1.79326757]
[1757270125211,1.5431096,877.06,875.83,1.79326757]
[1757270125507,0.19884124,876.71,875.83,1.79326757]
[1757270150135,0.19884124,876.71,875.78,0.76759517]
[1757270150432,0.19884124,876.71,875.69,0.76759517]
[1757270150837,0.19884124,876.71,875.7,1.49446396]
[1757270151138,0.19884124,876.71,875.7,0.76759517]
[1757270155737,0.19884124,876.71,875.71,1.49412375]
[1757270155938,0.19884124,876.71,875.71,0.76759517]
[1757270156942,0.19884124,876.71,875.75,0.76759517]
[1757270170256,0.19884124,876.71,875.75,1.79326757]
[1757270172057,0.19884124,876.71,875.74,1.79326757]
[1757270176057,0.19884124,876.71,875.64,0.76759517]
[1757270176362,0.19884124,876.71,875.65,0.72708492]
[1757270176556,0.19884124,876.71,875.64,0.76759517]
[1757270176761,0.19884124,876.71,875.65,0.72708349]
[1757270176960,0.19884124,876.71,875.64,0.76759517]
[1757270177159,0.19884124,876.71,875.25,1.0256724]
[1757270177160,0.19884124,876.71,875.65,1.49467866]
[1757270177360,0.19884124,876.71,875.65,0.76759517]
[1757270178560,0.19884124,876.71,875.66,0.72665109]
[1757270178764,0.19884124,876.71,875.66,0.76759517]
[1757270181762,1.5431096,877.51,875.66,0.76759517]
[1757270182262,2.5664127,878.87,874.47,1.338]
[1757270182263,1.5431096,877.52,875.67,1.49408056]
[1757270182466,1.5431096,877.52,875.67,0.76759517]
[1757270182767,1.5431096,877.49,875.67,0.76759517]
[1757270183267,1.5431096,877.5,875.67,0.76759517]
[1757270183666,1.5431096,877.47,875.67,0.76759517]
[1757270185068,0.19883385,877.03,875.67,0.76759517]
[1757270190873,0.19883385,877.03,875.68,1.49399369]
[1757270191072,0.19883385,877.03,875.68,0.76759517]
[1757270197174,0.19883385,877.03,875.83,0.76759517]
[1757270197379,0.19883385,877.03,875.84,1.49396378]
[1757270197579,0.19883385,877.03,875.84,0.76759517]
[1757270206682,0.19883385,877.03,875.85,1.49387608]
[1757270206879,0.19883385,877.03,875.85,0.76759517]
[1757270208085,0.19883385,877.03,875.85,1.79326757]
[1757270211181,0.19883385,877.03,875.84,1.79326757]
[1757270213682,0.19883385,877.03,875.85,2.51977935]
[1757270213883,0.19883385,877.03,875.85,1.79326757]
[1757270214086,0.19883385,877.03,875.85,0.76759517]
[1757270215286,0.19883385,877.03,875.86,1.49403489]
[1757270215484,0.19883385,877.03,876.17,0.76759517]
[1757270215690,0.19883385,877.03,876.18,1.49403489]
[1757270215989,0.19883385,877.03,876.19,0.72643972]
[1757270216188,0.19883385,877.03,876.15,0.76759517]
[1757270216387,0.19883385,877.03,876.16,0.72897995]
[1757270216584,0.19883385,877.03,876.17,0.72897995]
[1757270216789,0.19883385,877.03,876.16,0.76759517]
[1757270217184,0.19883385,877.03,876.14,0.76759517]
[1757270217389,0.19883385,877.03,876.15,0.72864948]
[1757270217690,0.19883385,877.03,876.16,0.72864948]
[1757270217883,0.19883385,877.03,876.15,0.76759517]
[1757270218088,0.19883385,877.03,876.16,0.72864994]
[1757270218294,0.19883385,877.03,876.13,0.76759517]
[1757270218587,0.19883385,877.03,876.14,0.72835252]
[1757270218786,0.19883385,877.03,876.15,0.72835252]
[1757270218986,0.19883385,877.03,876.16,0.72835252]
[1757270219287,0.19883385,877.03,876.12,0.76759517]
[1757270219491,0.19883385,877.03,876.13,0.72810655]
[1757270219693,0.19883385,877.03,876.14,0.72810655]
[1757270219894,0.19883385,877.03,876.15,0.72810655]
[1757270220194,0.19883385,877.03,876.12,0.76759517]
[1757270220389,0.19883385,877.03,876.13,0.72810655]
[1757270220590,0.19883385,877.03,876.14,0.72810655]
[1757270220889,0.19883385,877.03,876.15,0.72810655]
[1757270221089,0.19883385,877.03,876.16,0.72810655]
[1757270221389,0.19883385,877.03,876.16,0.76759517]
[1757270237503,0.19883385,877.03,876.11,0.76759517]
[1757270241611,0.19883385,877.03,876.09,0.76759517]
[1757270271744,0.19883385,877.03,876.09,1.79326757]
[1757270280162,0.19883385,877.03,876.08,0.76759517]
[1757270289969,0.19883385,877.03,876.08,1.79326757]
[1757270293571,0.19883385,877.03,876.08,0.76759517]
[1757270295676,0.19883385,877.03,876.08,1.79326757]
[1757270296377,0.19883385,877.03,876.08,0.76759517]
[1757270300175,0.19883385,877.03,876.1,0.76759517]
[1757270300678,0.19883385,877.03,876.09,0.76759517]
[1757270306278,0.19883385,877.03,876.09,1.79326757]
[1757270310688,0.19883385,877.03,876.09,0.76759517]
[1757270317284,0.19883385,877.03,876.09,1.79326757]
[1757270317488,0.19883385,877.03,876.09,0.76759517]
[1757270320191,0.19883385,877.03,876.09,1.79326757]
[1757270320390,0.19883385,877.03,876.09,0.76759517]
[1757270320585,0.19883385,877.03,876.09,1.79326757]
[1757270324491,0.19883385,877.03,876.08,1.79326757]
[1757270329694,0.19883385,877.03,876.08,1.0256724]
[1757270329994,0.19883385,877.03,876.08,1.79827584]
[1757270341804,0.19883385,877.03,876.08,3.34193954]
[1757270342905,0.19883385,877.03,876.09,4.07173321]
[1757270343105,0.19883385,877.03,876.09,3.34193954]
[1757270343501,0.19883385,877.03,876.09,1.79827584]
[1757270348208,0.19883385,877.03,876.09,0.77260344]
[1757270348510,1.5431096,877.59,875.74,1.0256724]
[1757270348710,1.5431096,877.59,875.75,0.72735602]
[1757270348908,1.5431096,877.59,875.76,0.72735602]
[1757270349207,1.5431096,877.59,875.77,0.72735602]
[1757270349405,1.5431096,877.6,875.78,0.72735602]
[1757270349705,1.5431096,877.6,875.79,0.72735602]
[1757270349906,1.5431096,877.6,875.8,0.72735602]
[1757270350105,1.5431096,877.6,875.81,0.72735602]
[1757270350409,1.5431096,877.6,873.59,3.5829768]
[1757270350410,1.5431096,877.61,875.82,0.72735602]
[1757270350603,1.5431096,877.61,875.83,0.72735602]
[1757270350806,1.5431096,877.61,875.84,0.72735602]
[1757270351006,1.5431096,877.61,875.85,0.72735602]
[1757270351310,0.19880261,877.17,875.86,0.72735602]
[1757270351606,0.19880261,877.17,875.87,0.72735602]
[1757270351809,0.19880261,877.17,875.88,0.72735602]
[1757270352004,0.19880261,877.17,875.89,0.72735602]
[1757270352203,0.19880261,877.17,875.9,0.72735602]
[1757270352406,0.19880261,877.17,875.91,0.72735602]
[1757270352609,0.19880261,877.17,875.92,0.72735602]
[1757270352810,0.19880261,877.17,875.93,0.72735602]
[1757270353010,0.19880261,877.17,875.71,1.0256724]
[1757270353209,0.19880261,877.17,875.72,0.72675156]
[1757270353410,0.19880261,877.17,875.73,0.72675156]
[1757270353706,0.19880261,877.17,875.74,0.72675156]
[1757270353910,0.19880261,877.17,875.75,0.72675156]
[1757270354208,0.19880261,877.17,875.76,0.72675156]
[1757270354411,0.19880261,877.17,875.77,0.72675156]
[1757270354710,0.19880261,877.17,875.78,0.72675156]
[1757270354911,0.19880261,877.17,875.79,0.72675156]
[1757270355107,0.19880261,877.17,875.8,0.72675156]
[1757270355307,0.19880261,877.17,875.81,0.72675156]
[1757270355507,0.19880261,877.17,875.82,0.72675156]
[1757270355806,0.19880261,877.17,875.83,0.72675156]
[1757270356008,0.19880261,877.17,875.84,0.72675156]
[1757270356208,0.19880261,877.17,875.85,0.72675156]
[1757270356509,0.19880261,877.17,875.86,0.72675156]
[1757270356709,0.19880261,877.17,875.87,0.72675156]
[1757270356906,0.19880261,877.17,875.8,1.0256724]
[1757270357108,0.19880261,877.17,875.81,0.72641623]
[1757270357309,0.19880261,877.17,875.82,0.72641623]
[1757270357508,0.19880261,877.17,875.83,0.72641623]
[1757270357708,0.19880261,877.17,875.84,0.72641623]
[1757270357909,0.19880261,877.17,875.85,0.72641623]
[1757270358215,0.19880261,877.17,875.86,0.72641623]
[1757270358415,0.19880261,877.17,875.87,0.72641623]
[1757270358611,0.19880261,877.17,875.84,1.0256724]
[1757270358816,0.19880261,877.17,875.85,1.75230324]
[1757270359015,0.19880261,877.17,875.86,0.72663084]
[1757270359316,0.19880261,877.17,875.83,1.0256724]
[1757270359516,0.19880261,877.17,875.84,0.72653041]
[1757270359717,0.19880261,877.17,875.85,0.72653041]
[1757270360016,0.19880261,877.17,875.86,0.72653041]
[1757270360217,0.19880261,877.17,875.82,1.0256724]
[1757270360415,0.19880261,877.17,875.83,0.72643945]
[1757270360614,0.19880261,877.17,875.84,0.72643945]
[1757270360813,0.19880261,877.17,875.82,1.0256724]
[1757270360814,0.19880261,877.17,875.85,0.72643945]
[1757270361114,0.19880261,877.17,875.86,0.72643945]
[1757270361318,0.19880261,877.17,875.82,1.0256724]
[1757270361520,0.19880261,877.17,875.83,0.72635543]
[1757270361718,0.19880261,877.17,875.84,0.72635543]
[1757270362013,0.19880261,877.17,875.85,0.72635543]
[1757270362219,0.19880261,877.17,875.82,1.0256724]
[1757270362220,0.19880261,877.17,875.86,0.72635543]
[1757270362415,0.19880261,877.17,875.81,1.0256724]
[1757270362614,0.19880261,877.17,875.82,0.72627963]
[1757270362820,0.19880261,877.17,875.83,0.72627963]
[1757270363020,0.19880261,877.17,875.84,0.72627963]
[1757270363320,0.19880261,877.17,875.85,0.72627963]
[1757270363520,0.19880261,877.17,875.86,0.72627963]
[1757270363720,0.19880261,877.17,875.8,1.0256724]
[1757270364021,0.19880261,877.17,875.81,0.72621136]
[1757270364221,0.19880261,877.17,875.82,0.72621136]
[1757270364419,0.19880261,877.17,875.83,0.72621136]
[1757270364623,0.19880261,877.17,875.84,0.72621136]
[1757270364823,0.19880261,877.17,875.85,0.72621136]
[1757270365120,0.19880261,877.17,875.86,0.72621136]
[1757270365424,0.19880261,877.17,875.8,1.0256724]
[1757270365622,0.19880261,877.17,875.83,1.0256724]
[1757270365819,0.19880261,877.17,875.84,0.72609312]
[1757270366022,0.19880261,877.17,875.85,0.72609312]
[1757270366223,0.19880261,877.17,875.86,0.72609312]
[1757270366424,0.19880261,877.17,875.82,1.0256724]
[1757270366619,0.19880261,877.17,875.83,0.72604274]
[1757270366926,0.19880261,877.17,875.84,0.72604274]
[1757270367221,0.19880261,877.17,875.85,0.72604274]
[1757270367420,1.5431096,877.16,875.86,0.72604274]
[1757270367621,1.5431096,877.16,875.83,1.0256724]
[1757270367921,0.19880261,877.17,875.84,0.72599772]
[1757270368225,0.19880261,877.17,875.85,0.72599772]
[1757270368525,0.19880261,877.17,875.86,0.72599772]
[1757270368825,0.19880261,877.17,874.87,2.5592691]
[1757270368826,0.19880261,877.17,875.82,1.0256724]